bitfinex/quotes_SOLUSD_20250922
["timestamp","ask_amount","ask_price","bid_price","bid_amount"]
[1758515947187,4.71583682,232.7,232.65,13.73635547]
[1758515947502,2.88304665,232.69,232.65,13.73635547]
[1758515947707,0.66,232.7,232.65,13.73635547]
[1758515947997,2.88221664,232.69,232.65,13.73635547]
[1758515948306,2.88169692,232.69,232.65,13.73635547]
[1758515949604,3.54169692,232.69,232.65,13.73635547]
[1758515949788,0.66,232.69,232.65,13.73635547]
[1758515950380,3.54129859,232.69,232.65,13.73635547]
[1758515950589,2.88129859,232.69,232.65,13.73635547]
[1758515950795,2.88129859,232.7,232.65,13.73635547]
[1758515951111,3.56027889,232.7,232.65,18.03465072]
[1758515951285,3.56027889,232.7,232.66,0.68]
[1758515951488,32.98,232.71,232.67,0.68]
[1758515951877,2.87942461,232.7,232.67,0.68]
[1758515952785,7.17666267,232.71,232.67,0.68]
[1758515952998,2.87942461,232.7,232.67,0.68]
[1758515953197,7.85666267,232.71,232.67,0.68]
[1758515953588,2.87942461,232.7,232.67,0.68]
[1758515953994,7.85666267,232.71,232.67,0.68]
[1758515954208,3.55942461,232.71,232.67,0.68]
[1758515954410,3.55942461,232.71,232.67,4.97789113]
[1758515955209,3.55942461,232.71,232.67,0.68]
[1758515956397,7.85666172,232.71,232.67,0.68]
[1758515957983,4.97723711,232.71,232.67,0.68]
[1758515958188,7.85666172,232.71,232.67,0.68]
[1758515958796,37.95723711,232.71,232.67,0.68]
[1758515958987,4.97723711,232.71,232.67,0.68]
[1758515959184,37.95723711,232.71,232.67,0.68]
[1758515959613,4.97723711,232.71,232.67,0.68]
[1758515960309,37.95723711,232.71,232.67,0.68]
[1758515960706,37.95723711,232.71,232.65,18.044567]
[1758515961008,37.95723711,232.71,232.66,0.68]
[1758515961208,0.68,232.7,232.61,0.68]
[1758515961414,1.17076321,232.69,232.61,0.68]
[1758515961619,0.68,232.68,232.61,0.68]
[1758515961915,32.98,232.67,232.61,0.68]
[1758515962100,33.66,232.67,232.61,0.68]
[1758515962896,32.98,232.69,232.61,0.68]
[1758515963110,4.97723711,232.71,232.62,4.2988565]
[1758515963308,32.98,232.7,232.63,0.68]
[1758515963896,12.92351433,232.76,232.63,0.68]
[1758515964094,0.68,232.73,232.63,0.68]
[1758515964296,34.15106237,232.72,232.63,0.68]
[1758515964511,2.87590235,232.71,232.63,0.68]
[1758515965192,2.87590235,232.71,232.64,15.04470426]
[1758515965389,33.66,232.72,232.65,0.68]
[1758515965590,2.87590235,232.71,232.65,0.68]
[1758515966219,3.70034861,232.77,232.65,0.68]
[1758515966220,31.88,232.76,232.65,0.68]
[1758515966403,2.87683083,232.75,232.65,0.68]
[1758515966899,0.68,232.76,232.65,0.68]
[1758515967100,32.98,232.75,232.65,0.68]
[1758515967299,32.98,232.75,232.66,46.24341098]
[1758515967601,32.98,232.75,232.67,0.71]
[1758515968730,0.68,232.76,232.68,15.04211793]
[1758515968899,33.66,232.76,232.68,15.04211793]
[1758515969099,33.66,232.76,232.69,0.71]
[1758515969815,32.98,232.76,232.7,15.04082508]
[1758515970010,0.1,232.77,232.71,0.71]
[1758515970213,32.98,232.76,232.71,0.71]
[1758515970401,32.98,232.76,232.72,0.71]
[1758515971533,32.98,232.76,232.73,4.29682464]
[1758515971700,0.76,232.77,232.73,4.29682464]
[1758515971900,33.74,232.77,232.73,4.29682464]
[1758515972103,2.8793598,232.76,232.73,4.29682464]
[1758515972320,0.1,232.77,232.73,4.29682464]
[1758515972507,0.1,232.77,232.73,5.00682464]
[1758515973823,0.1,232.77,232.67,15.04276442]
[1758515974036,0.1,232.77,232.73,0.71]
[1758515974324,0.1,232.77,232.74,0.71]
[1758515975318,0.1,232.77,232.75,4.29645542]
[1758515979736,0.66,232.76,232.73,4.2966598]
[1758515979940,0.66,232.75,232.71,4.29707333]
[1758515980234,0.66,232.75,232.71,5.00707333]
[1758515980935,32.96,232.76,232.71,4.29707333]
[1758515981140,32.96,232.76,232.72,0.71]
[1758515981344,33.62,232.76,232.72,0.71]
[1758515981929,33.62,232.76,232.72,5.00692]
[1758515982135,0.66,232.75,232.7,5.00722449]
[1758515982518,0.66,232.75,232.7,4.29722449]
[1758515982723,0.66,232.75,232.71,0.71]
[1758515983912,0.66,232.75,232.72,4.29700928]
[1758515984419,32.96,232.76,232.72,4.29700928]
[1758515984728,32.96,232.76,232.73,0.71]
[1758515985120,32.96,232.76,232.71,0.71]
[1758515985319,33.62,232.76,232.68,15.04211793]
[1758515985619,33.62,232.76,232.72,0.71]
[1758515985843,32.96,232.76,232.68,15.04211793]
[1758515986017,32.96,232.76,232.73,0.71]
[1758515987007,32.96,232.76,232.68,10.74436995]
[1758515987213,32.96,232.76,232.69,0.71]
[1758515988141,33.62,232.76,232.69,5.00756328]
[1758515988315,33.62,232.76,232.7,0.71]
[1758515988520,0.66,232.75,232.7,0.71]
[1758515989139,32.96,232.76,232.69,4.29756328]
[1758515989331,0.66,232.75,232.7,0.71]
[1758515989839,0.66,232.74,232.7,5.00724803]
[1758515990046,33.62,232.76,232.7,5.00724803]
[1758515990223,0.66,232.75,232.7,5.00724803]
[1758515990718,0.66,232.75,232.71,5.00707512]
[1758515991020,32.96,232.76,232.71,5.00707512]
[1758515991333,33.62,232.76,232.72,0.71]
[1758515993343,33.62,232.76,232.72,5.00697965]
[1758515993538,0.1,232.77,232.73,0.71]
[1758515993728,33.06,232.77,232.73,0.71]
[1758515994140,0.1,232.77,232.72,4.29697965]
[1758515994346,0.66,232.76,232.7,4.29724228]
[1758515994544,0.66,232.75,232.7,4.29724228]
[1758515994728,0.66,232.74,232.7,4.29724228]
[1758515995640,0.66,232.74,232.7,0.71]
[1758515995824,0.66,232.76,232.71,0.71]
[1758515996242,0.66,232.76,232.72,0.71]
[1758515997728,0.66,232.76,232.72,5.00689074]
[1758515998943,0.1,232.77,232.73,0.66]
[1758515999155,33.06,232.77,232.74,0.66]
[1758516000860,37.35610712,232.77,232.67,15.0426676]
[1758516001154,0.67,232.76,232.7,4.95722024]
[1758516001326,0.67,232.76,232.7,4.29722024]
[1758516001528,0.67,232.76,232.71,0.66]
[1758516001728,33.06,232.77,232.72,0.66]
[1758516002031,33.73,232.77,232.72,0.66]
[1758516002235,0.67,232.76,232.7,4.95722024]
[1758516002656,0.67,232.75,232.63,4.45120721]
[1758516002829,35.98622351,232.74,232.64,0.66]
[1758516003034,4.29700928,232.72,232.64,4.95848693]
[1758516003235,0.67,232.71,232.64,4.29848693]
[1758516003555,32.96,232.72,232.65,0.66]
[1758516003947,0.67,232.73,232.65,0.66]
[1758516004256,3.54868387,232.73,232.65,0.66]
[1758516004435,0.67,232.73,232.65,0.66]
[1758516004754,32.96,232.72,232.65,0.66]
[1758516004954,32.96,232.72,232.66,4.29811742]
[1758516005161,33.63,232.72,232.66,4.95811742]
[1758516006032,0.67,232.72,232.66,4.95811742]
[1758516006233,0.67,232.72,232.67,0.66]
[1758516006432,33.63,232.72,232.68,0.66]
[1758516007262,0.67,232.72,232.68,4.957694]
[1758516007444,33.63,232.72,232.68,4.297694]
[1758516007641,0.67,232.71,232.68,4.297694]
[1758516008055,0.67,232.7,232.65,0.66]
[1758516008250,0.67,232.69,232.65,0.66]
[1758516008853,3.55215088,232.71,232.65,0.66]
[1758516009066,32.96,232.7,232.65,0.66]
[1758516009357,0.67,232.71,232.65,4.95812408]
[1758516009562,36.5123094,232.71,232.65,4.95812408]
[1758516009740,33.63,232.71,232.65,4.95812408]
[1758516010854,32.96,232.71,232.66,0.72]
[1758516011036,32.96,232.72,232.66,0.72]
[1758516013169,0.66,232.74,232.67,4.29793269]
[1758516013337,36.50298556,232.74,232.68,0.72]
[1758516013538,33.62,232.74,232.68,0.72]
[1758516014938,0.66,232.74,232.69,4.29756328]
[1758516015147,0.1,232.77,232.7,0.72]
[1758516015338,2.98293422,232.77,232.7,0.72]
[1758516015851,0.1,232.77,232.7,0.72]
[1758516016039,2.98293422,232.77,232.7,0.72]
[1758516016240,0.1,232.77,232.7,0.72]
[1758516016648,0.1,232.77,232.72,31.2]
[1758516016856,0.1,232.77,232.73,0.72]
[1758516017154,0.1,232.77,232.74,15.03824008]
[1758516017343,0.1,232.77,232.75,0.72]
[1758516018648,0.1,232.77,232.76,5.01627083]
[1758516023861,0.1,232.77,232.76,18.15667604]
[1758516024363,0.1,232.77,232.76,13.14040521]
[1758516024569,0.76,232.77,232.73,4.29682464]
[1758516024750,0.76,232.77,232.73,5.01682464]
[1758516024943,0.1,232.77,232.74,0.72]
[1758516025461,0.1,232.77,232.73,4.29682464]
[1758516025662,0.1,232.77,232.75,0.72]
[1758516026050,0.1,232.77,232.76,0.72]
[1758516026562,0.1,232.77,232.76,5.01627083]
[1758516026957,0.1,232.77,232.76,4.29627083]
[1758516028452,0.1,232.77,232.74,4.29664002]
[1758516028675,0.1,232.77,232.75,0.7]
[1758516029778,0.1,232.77,232.76,4.29627083]
[1758516030087,0.1,232.77,232.75,0.7]
[1758516030286,0.81,232.77,232.74,4.29647826]
[1758516031192,0.1,232.77,232.74,4.29647826]
[1758516031772,0.1,232.77,232.74,4.99647826]
[1758516032093,0.1,232.77,232.75,0.7]
[1758516032673,0.1,232.77,232.74,4.29647826]
[1758516032874,0.1,232.77,232.76,0.7]
[1758516034067,0.1,232.77,232.76,4.99627083]
[1758516051283,0.1,232.77,232.74,15.03824008]
[1758516051473,0.1,232.77,232.74,15.73824008]
[1758516051679,0.1,232.77,232.74,15.03824008]
[1758516051990,0.1,232.77,232.75,0.7]
[1758516052388,0.1,232.77,232.76,4.29627083]
[1758516053083,0.1,232.77,232.76,4.99627083]
[1758516055182,0.1,232.77,232.75,0.7]
[1758516055784,0.1,232.77,232.76,0.7]
[1758516056390,0.1,232.77,232.76,4.99627083]
[1758516057587,0.1,232.77,232.76,37.93627083]
[1758516058677,0.1,232.77,232.76,4.99627083]
[1758516058889,0.1,232.77,232.76,37.93627083]
[1758516059592,0.1,232.77,232.76,4.29627083]
[1758516060391,0.1,232.77,232.76,4.97627083]
[1758516061810,0.82,232.77,232.75,32.94]
[1758516061972,0.72,232.76,232.73,16.97899327]
[1758516062694,0.1,232.77,232.74,0.68]
[1758516062874,0.1,232.77,232.75,0.68]
[1758516063191,0.1,232.77,232.73,27.72105488]
[1758516063495,0.1,232.77,232.74,0.68]
[1758516063993,0.1,232.77,232.75,4.29645542]
[1758516066671,0.1,232.77,232.75,4.97645542]
[1758516070677,0.1,232.77,232.76,0.68]
[1758516072590,0.1,232.77,232.76,4.97627083]
[1758516076596,0.79,232.77,232.73,12.68234906]
[1758516076903,0.69,232.76,232.72,4.29700928]
[1758516077283,0.1,232.77,232.7,4.29720117]
[1758516077284,0.69,232.75,232.7,4.29720117]
[1758516077596,0.69,232.74,232.7,4.29720117]
[1758516078190,0.69,232.74,232.7,4.99720117]
[1758516078392,2.88788166,232.76,232.69,4.29756328]
[1758516078590,0.69,232.73,232.69,4.29756328]
[1758516078901,0.69,232.75,232.7,0.7]
[1758516079098,4.29629239,232.76,232.7,0.7]
[1758516079289,0.69,232.74,232.69,4.29756328]
[1758516079605,0.69,232.73,232.69,4.99756328]
[1758516080008,0.69,232.75,232.7,0.7]
[1758516080191,0.69,232.74,232.7,0.7]
[1758516081303,41.61240315,232.77,232.69,17.36908127]
[1758516081508,0.69,232.73,232.69,13.07151799]
[1758516081806,0.69,232.72,232.65,4.99830217]
[1758516082008,0.69,232.71,232.65,4.99830217]
[1758516082606,0.69,232.73,232.66,0.7]
[1758516082906,4.98686991,232.73,232.67,4.29793269]
[1758516083104,0.69,232.72,232.67,4.29793269]
[1758516083283,0.69,232.71,232.67,4.99793269]
[1758516085413,0.69,232.71,232.65,4.99830217]
[1758516085610,0.69,232.7,232.65,4.99830217]
[1758516085810,0.69,232.7,232.66,0.7]
[1758516086993,4.29718865,232.72,232.66,4.29804476]
[1758516087208,0.66,232.71,232.66,4.29804476]
[1758516087409,0.66,232.7,232.66,4.97804476]
[1758516087610,0.66,232.7,232.66,0.68]
[1758516087784,4.29718865,232.72,232.64,12.86409412]
[1758516087785,0.66,232.69,232.64,12.86409412]
[1758516087990,0.66,232.68,232.63,4.29867073]
[1758516088189,0.66,232.68,232.63,4.97867073]
[1758516088597,0.66,232.68,232.63,18.2064624]
[1758516088893,0.66,232.68,232.64,0.68]
[1758516090096,0.66,232.67,232.63,13.22779167]
[1758516090310,0.66,232.66,232.61,4.97888484]
[1758516090509,0.66,232.66,232.61,4.29888484]
[1758516090717,0.66,232.66,232.62,0.68]
[1758516090896,4.29756328,232.69,232.62,4.9788519]
[1758516091096,0.66,232.68,232.62,4.9788519]
[1758516091411,32.94,232.68,232.63,0.68]
[1758516091595,32.94,232.68,232.62,4.2988519]
[1758516091794,32.94,232.68,232.63,0.68]
[1758516091993,32.94,232.68,232.64,0.68]
[1758516092200,33.6,232.68,232.64,0.68]
[1758516094122,33.6,232.68,232.64,4.97846546]
[1758516094707,0.66,232.68,232.64,4.97846546]
[1758516095019,33.6,232.7,232.65,0.68]
[1758516095220,33.6,232.7,232.65,4.97823068]
[1758516095517,0.66,232.7,232.65,4.97823068]
[1758516095718,33.6,232.7,232.65,4.97823068]
[1758516096126,0.66,232.69,232.65,4.97823068]
[1758516097821,142.94783222,232.71,232.65,4.29823068]
[1758516098120,32.94,232.7,232.66,0.68]
[1758516098309,33.6,232.7,232.66,0.68]
[1758516098505,165.14,232.71,232.67,0.68]
[1758516098706,132.2,232.71,232.68,0.68]
[1758516099208,132.2,232.71,232.67,0.68]
[1758516099417,132.86,232.71,232.65,4.29823068]
[1758516099618,132.86,232.71,232.66,0.68]
[1758516100131,132.86,232.71,232.66,4.97801216]
[1758516101921,0.66,232.7,232.66,4.97801216]
[1758516102801,132.2,232.71,232.66,4.97801216]
[1758516103120,0.66,232.7,232.64,0.68]
[1758516103429,136.49726382,232.71,232.64,0.68]
[1758516103720,132.86,232.71,232.64,0.68]
[1758516103918,132.86,232.71,232.65,4.29830217]
[1758516104131,132.86,232.71,232.66,0.68]
[1758516104917,132.86,232.71,232.67,0.68]
[1758516106629,132.86,232.71,232.66,4.29795653]
[1758516106630,0.66,232.7,232.66,4.29795653]
[1758516106818,132.86,232.71,232.66,4.97795653]
[1758516108726,165.8,232.71,232.66,4.97795653]
[1758516110421,0.66,232.7,232.66,4.97795653]
[1758516111143,165.14,232.71,232.62,15.04599776]
[1758516111430,165.14,232.71,232.63,0.68]
[1758516112230,165.8,232.71,232.63,0.68]
[1758516112541,165.8,232.71,232.64,4.29848693]
[1758516112731,165.8,232.71,232.65,0.68]
[1758516114330,165.8,232.71,232.66,4.29811742]
[1758516114511,0.66,232.7,232.66,4.97811742]
[1758516119137,132.2,232.71,232.67,0.72]
[1758516119355,132.2,232.76,232.67,0.72]
[1758516119521,1.39143122,232.75,232.67,31.92]
[1758516119833,132.2,232.76,232.68,0.72]
[1758516120041,0.1,232.77,232.68,0.72]
[1758516120210,0.1,232.77,232.71,31.2]
[1758516120411,0.1,232.77,232.72,0.72]
[1758516120716,0.1,232.77,232.73,0.72]
[1758516120918,0.1,232.77,232.72,15.03953248]
[1758516121240,0.1,232.77,232.72,15.75953248]
[1758516121436,0.1,232.77,232.73,0.72]
[1758516122026,0.1,232.77,232.72,15.03953248]
[1758516122232,0.1,232.77,232.74,0.72]
[1758516122427,0.1,232.77,232.75,0.72]
[1758516123036,0.1,232.77,232.76,4.29627083]
[1758516123831,0.1,232.77,232.73,5.01682464]
[1758516124343,0.1,232.77,232.74,0.72]
[1758516124731,0.1,232.77,232.75,4.29645542]
[1758516127054,0.1,232.77,232.75,0.72]
[1758516128920,0.68,232.76,232.7,4.29724519]
[1758516129126,0.68,232.75,232.68,5.01759919]
[1758516129428,0.68,232.74,232.68,4.29759919]
[1758516129722,34.99028092,232.73,232.66,5.01794631]
[1758516129928,33.6,232.73,232.66,4.29794631]
[1758516130154,0.72,232.72,232.66,4.29794631]
[1758516130359,0.72,232.72,232.66,4.94794631]
[1758516130533,32.92,232.73,232.67,0.65]
[1758516130836,0.72,232.75,232.67,0.65]
[1758516131021,3.59945333,232.75,232.68,4.29774798]
[1758516131229,0.72,232.75,232.69,0.65]
[1758516131428,3.59943417,232.75,232.69,0.65]
[1758516132049,0.72,232.75,232.69,0.65]
[1758516132442,0.72,232.75,232.7,4.29737859]
[1758516132748,0.72,232.75,232.7,4.94737859]
[1758516134247,0.72,232.75,232.71,0.65]
[1758516134450,0.72,232.75,232.67,15.04276442]
[1758516134641,0.72,232.74,232.68,0.65]
[1758516134838,2.87901146,232.75,232.68,0.65]
[1758516135040,0.1,232.77,232.68,0.65]
[1758516135649,0.1,232.77,232.7,31.2]
[1758516135827,0.1,232.77,232.71,0.65]
[1758516136027,0.1,232.77,232.72,32.92]
[1758516136245,0.1,232.77,232.74,15.03824008]
[1758516136744,0.1,232.77,232.75,0.65]
[1758516137128,0.1,232.77,232.76,31.2]
[1758516137466,1e-08,232.83,232.77,31.2]
[1758516137653,1e-08,232.83,232.77,31.85]
[1758516137952,1e-08,232.83,232.78,33.57]
[1758516138159,1e-08,232.83,232.78,35.29165192]
[1758516138343,1e-08,232.83,232.79,15.68501008]
[1758516138723,1e-08,232.83,232.8,33.57]
[1758516139630,1e-08,232.83,232.81,0.65]
[1758516140345,1e-08,232.83,232.82,4.29516364]
[1758516140732,1e-08,232.83,232.82,4.94516364]
[1758516142230,1e-08,232.83,232.82,37.86516364]
[1758516143561,1e-08,232.83,232.82,4.94516364]
[1758516143850,1e-08,232.83,232.82,37.86516364]
[1758516145968,1e-08,232.83,232.82,4.94516364]
[1758516146259,1e-08,232.83,232.82,37.86516364]
[1758516149339,0.72000001,232.83,232.81,12.68295059]
[1758516149653,0.72000001,232.83,232.78,31.92]
[1758516149850,0.72000001,232.83,232.8,32.92]
[1758516150754,0.72,232.82,232.8,4.29549163]
[1758516151049,1e-08,232.83,232.8,4.29549163]
[1758516151655,0.72000001,232.83,232.8,4.29549163]
[1758516152362,1e-08,232.83,232.8,4.29549163]
[1758516152747,0.72000001,232.83,232.8,4.29549163]
[1758516153144,1e-08,232.83,232.8,4.29549163]
[1758516153836,1e-08,232.83,232.81,0.72]
[1758516154052,1e-08,232.83,232.82,32.9]
[1758516154444,1e-08,232.83,232.82,33.62]
[1758516154963,1e-08,232.83,232.82,37.91516364]
[1758516157658,1e-08,232.83,232.82,37.19516364]
[1758516158450,1e-08,232.83,232.82,37.91516364]
[1758516163765,1e-08,232.83,232.82,37.19516364]
[1758516165644,1e-08,232.83,232.81,4.29534668]
[1758516165845,1e-08,232.83,232.82,32.9]
[1758516166068,1e-08,232.83,232.8,12.63135193]
[1758516166270,1e-08,232.83,232.82,0.72]
[1758516167561,1e-08,232.83,232.82,33.62]
[1758516168371,1e-08,232.83,232.82,37.91516364]
[1758516171470,1e-08,232.83,232.82,4.29516364]
[1758516171674,1e-08,232.83,232.82,37.19516364]
[1758516172172,1e-08,232.83,232.82,4.29516364]
[1758516172358,1e-08,232.83,232.82,37.19516364]
[1758516174178,1e-08,232.83,232.81,4.29534813]
[1758516174348,1e-08,232.83,232.82,32.9]
[1758516175560,1e-08,232.83,232.82,37.19516364]
[1758516178882,1e-08,232.83,232.82,37.86516364]
[1758516179266,1e-08,232.83,232.82,37.19516364]
[1758516179661,1e-08,232.83,232.82,37.86516364]
[1758516179861,1e-08,232.83,232.82,37.19516364]
[1758516180268,1e-08,232.83,232.82,32.9]
[1758516180876,1e-08,232.83,232.82,33.57]
[1758516182175,1e-08,232.83,232.82,64.77]
[1758516182378,1e-08,232.83,232.82,69.06516364]
[1758516182970,1e-08,232.83,232.82,36.16516364]
[1758516183172,1e-08,232.83,232.82,69.08516364]
[1758516183684,1e-08,232.83,232.82,68.41516364]
[1758516184265,1e-08,232.83,232.82,69.08516364]
[1758516184661,1e-08,232.83,232.82,35.49516364]
[1758516184957,1e-08,232.83,232.82,68.41516364]
[1758516186667,1e-08,232.83,232.82,37.21516364]
[1758516188092,1e-08,232.83,232.82,37.88516364]
[1758516188272,1e-08,232.83,232.82,37.21516364]
[1758516188476,1e-08,232.83,232.82,37.88516364]
[1758516188667,1e-08,232.83,232.82,37.21516364]
[1758516190371,1e-08,232.83,232.82,37.88516364]
[1758516191368,1e-08,232.83,232.82,37.21516364]
[1758516191983,0.65000001,232.83,232.8,4.29536946]
[1758516192183,0.65,232.82,232.81,32.92]
[1758516192889,0.65,232.82,232.79,4.29570813]
[1758516193086,1e-08,232.83,232.77,17.38654878]
[1758516193387,0.65,232.81,232.77,13.09058001]
[1758516193586,0.65,232.8,232.77,32.94]
[1758516194370,0.65,232.8,232.77,37.23606695]
[1758516194795,2.04648897,232.83,232.77,37.23606695]
[1758516194996,2.04648897,232.83,232.77,37.94606695]
[1758516195385,0.65000001,232.83,232.77,37.94606695]
[1758516196495,1e-08,232.83,232.78,0.71]
[1758516197204,1e-08,232.83,232.79,32.94]
[1758516197574,1e-08,232.83,232.8,0.71]
[1758516198302,1e-08,232.83,232.81,37.94534813]
[1758516200796,1e-08,232.83,232.82,5.00516364]
[1758516201003,1e-08,232.83,232.82,4.29516364]
[1758516201398,1e-08,232.83,232.82,5.00516364]
[1758516202476,1e-08,232.83,232.82,37.94516364]
[1758516213909,1e-08,232.83,232.82,5.00516364]
[1758516214094,1e-08,232.83,232.82,37.19516364]
[1758516214596,1e-08,232.83,232.82,37.85516364]
[1758516224698,1e-08,232.83,232.82,4.95516364]
[1758516224904,1e-08,232.83,232.82,37.85516364]
[1758516231632,1e-08,232.83,232.82,37.19516364]
[1758516232005,1e-08,232.83,232.82,4.29516364]
[1758516232322,1e-08,232.83,232.82,37.19516364]
[1758516232514,1e-08,232.83,232.82,37.85516364]
[1758516232716,1e-08,232.83,232.82,37.19516364]
[1758516235723,1e-08,232.83,232.82,37.85516364]
[1758516237532,1e-08,232.83,232.82,37.19516364]
[1758516238413,1e-08,232.83,232.82,4.96516364]
[1758516238613,1e-08,232.83,232.82,37.86516364]
[1758516241009,1e-08,232.83,232.82,4.96516364]
[1758516241210,1e-08,232.83,232.82,37.86516364]
[1758516243841,1e-08,232.83,232.82,37.19516364]
[1758516244022,0.70000001,232.83,232.81,4.29534813]
[1758516244220,0.7,232.82,232.79,4.29556164]
[1758516244417,0.7,232.81,232.76,23.79377243]
[1758516244736,1e-08,232.83,232.77,4.29590251]
[1758516244737,0.7,232.8,232.77,4.29590251]
[1758516244934,0.7,232.79,232.67,4.45120721]
[1758516245127,0.7,232.78,232.69,0.67]
[1758516245446,0.7,232.78,232.7,10.74326052]
[1758516245735,31.2,232.81,232.71,32.9]
[1758516245736,0.7,232.77,232.71,32.9]
[1758516245930,0.7,232.77,232.68,4.29774798]
[1758516245931,0.7,232.76,232.72,32.9]
[1758516246139,0.7,232.75,232.72,32.9]
[1758516246338,0.7,232.74,232.72,32.9]
[1758516246535,15.03929262,232.78,232.72,32.9]
[1758516246741,0.7,232.73,232.72,32.9]
[1758516246916,15.03929262,232.78,232.72,32.9]
[1758516247112,0.7,232.77,232.64,23.79528857]
[1758516247328,0.7,232.76,232.64,23.79528857]
[1758516247636,0.7,232.76,232.65,32.9]
[1758516247815,0.7,232.75,232.65,32.9]
[1758516248020,0.7,232.74,232.65,32.9]
[1758516248343,35.49682464,232.73,232.65,37.19830217]
[1758516248547,0.7,232.72,232.65,37.19830217]
[1758516248744,48.41866902,232.73,232.65,37.19830217]
[1758516248919,0.7,232.71,232.64,13.0492391]
[1758516249232,48.41866902,232.73,232.61,0.67]
[1758516249233,0.7,232.7,232.62,28.84]
[1758516249539,0.7,232.69,232.62,28.84]
[1758516249740,0.7,232.68,232.62,28.84]
[1758516250057,0.7,232.67,232.62,33.13880022]
[1758516250224,0.7,232.66,232.61,17.36333593]
[1758516250421,0.7,232.65,232.61,17.36333593]
[1758516250636,0.7,232.64,232.61,17.36333593]
[1758516251516,0.67,232.66,232.61,17.36333593]
[1758516251729,4.29759029,232.69,232.61,17.36333593]
[1758516251932,0.67,232.68,232.61,17.36333593]
[1758516252120,0.67,232.67,232.61,17.36333593]
[1758516252321,31.2,232.7,232.57,0.66]
[1758516252322,0.67,232.66,232.57,0.66]
[1758516252522,0.67,232.66,232.57,33.58]
[1758516252723,0.67,232.65,232.57,33.58]
[1758516252950,0.67,232.64,232.57,33.58]
[1758516253142,0.67,232.63,232.57,33.58]
[1758516253344,0.67,232.63,232.59,4.29941098]
[1758516253522,0.67,232.65,232.6,0.66]
[1758516253845,12.92685555,232.66,232.61,0.66]
[1758516254038,13.59685555,232.66,232.61,0.66]
[1758516254543,0.67,232.65,232.59,4.95941098]
[1758516255543,17.22504945,232.66,232.59,4.29941098]
[1758516255749,0.67,232.64,232.58,0.66]
[1758516256863,0.67,232.64,232.58,4.95941685]
[1758516257750,0.67,232.63,232.54,44.14710658]
[1758516257934,31.87,232.62,232.54,17.90727549]
[1758516258143,0.67,232.61,232.54,12.94710658]
[1758516258359,0.67,232.61,232.52,4.30058341]
[1758516258360,0.67,232.6,232.52,37.90058341]
[1758516258855,0.67,232.6,232.53,5.16044074]
[1758516259247,13.60019847,232.6,232.53,5.16044074]
[1758516259846,17.89949692,232.6,232.53,5.16044074]
[1758516260361,0.67,232.59,232.53,5.16044074]
[1758516261371,4.96945024,232.59,232.53,5.16044074]
[1758516261571,4.96945024,232.59,232.53,0.86]
[1758516262444,4.96945024,232.59,232.53,13.79900115]
[1758516262640,0.67,232.59,232.53,13.79900115]
[1758516262847,0.67,232.59,232.53,18.09950474]
[1758516263364,0.67,232.59,232.54,0.66]